bitfinex-derivatives/quotes_ETHF0:USTF0_20250824
["timestamp","ask_amount","ask_price","bid_price","bid_amount"]
[1755996277278,1.23719433,4819.4,4819.3,0.67699157]
[1755996277473,0.69169433,4819.4,4819.3,0.67699157]
[1755996277677,0.2229,4819.4,4819.3,0.67701755]
[1755996278172,0.2229,4819.4,4819.3,0.67697644]
[1755996278679,1.3506,4819.4,4819.3,0.67697644]
[1755996279070,1.3506,4819.4,4819.3,0.67617644]
[1755996279276,0.456,4819.4,4819.3,0.67697644]
[1755996279476,0.2229,4819.4,4819.3,0.67697644]
[1755996279679,1.3506,4819.4,4819.3,0.67697644]
[1755996279875,0.6109,4819.4,4819.3,0.67701989]
[1755996280078,0.2229,4819.4,4819.3,0.67701989]
[1755996280278,0.9913,4819.4,4819.3,0.67701989]
[1755996280480,1.3506,4819.4,4819.3,0.67701989]
[1755996281778,1.3506,4819.4,4819.3,0.67621989]
[1755996283184,1.3506,4819.4,4819.3,0.67701989]
[1755996283382,0.6109,4819.4,4819.3,0.67701989]
[1755996283884,1.3506,4819.4,4819.3,0.67621989]
[1755996285180,1.82032128,4819.4,4819.3,0.67621989]
[1755996287682,1.82032128,4819.4,4819.3,0.67696921]
[1755996287876,1.82032128,4819.4,4818.0,2.07619]
[1755996287877,0.5353,4818.8,4818.2,4.24585]
[1755996288081,4.46972128,4819.4,4818.3,0.83107286]
[1755996288082,1.3506,4818.4,4818.3,0.83107286]
[1755996288290,1.82032128,4818.4,4818.3,1.18357286]
[1755996288486,1.82032128,4818.4,4818.3,0.92171]
[1755996288887,1.82032128,4818.4,4818.3,0.72441]
[1755996289089,1.82032128,4818.4,4818.3,0.41521]
[1755996290687,1.3506,4818.0,4817.9,0.41524]
[1755996290888,1.3506,4817.8,4817.7,3.2078]
[1755996291088,1.82032128,4817.8,4817.7,3.2078]
[1755996291485,1.82032128,4817.8,4816.6,1.2748]
[1755996291486,1.3506,4817.5,4817.4,0.41528]
[1755996291691,1.3506,4817.5,4817.0,3.2078]
[1755996291692,0.5353,4817.1,4817.0,3.2078]
[1755996291885,1.82032128,4817.1,4817.0,3.2078]
[1755996292687,1.82032128,4817.1,4816.3,3.2078]
[1755996292891,1.3506,4817.0,4816.9,0.41532]
[1755996293586,1.3506,4817.0,4816.7,0.41535]
[1755996293894,1.3506,4816.9,4816.8,0.41533]
[1755996294587,0.2229,4816.8,4816.6,0.41535]
[1755996294793,1.3506,4816.7,4816.6,0.41535]
[1755996296795,0.2229,4816.7,4816.6,1.73235]
[1755996296997,1.1277,4817.2,4817.1,1.50651]
[1755996297496,1.3506,4817.2,4817.1,1.50651]
[1755996297697,1.3506,4817.2,4817.1,1.27011]
[1755996298097,1.3506,4817.2,4817.1,0.41531]
[1755996299196,1.3506,4817.2,4816.4,4.24622]
[1755996299197,0.5353,4816.9,4816.8,0.41534]
[1755996299398,1.3506,4816.9,4816.8,0.41534]
[1755996299799,0.5353,4816.7,4816.6,0.41535]
[1755996300000,1.3506,4816.7,4816.6,0.41535]
[1755996300195,1.3506,4816.7,4815.3,0.41546]
[1755996300196,0.2355,4815.4,4815.3,0.41546]
[1755996300393,26.5578,4816.7,4815.2,0.3904]
[1755996300394,0.5948,4815.3,4815.2,0.3904]
[1755996300593,0.5948,4815.3,4815.2,0.2364]
[1755996300799,0.5948,4815.3,4815.2,0.3904]
[1755996300995,0.5948,4815.3,4815.2,0.7714]
[1755996301304,0.5948,4815.3,4815.2,0.9923]
[1755996301596,0.5948,4815.3,4814.1,1.27037]
[1755996301597,0.2355,4814.2,4814.1,1.27037]
[1755996301796,0.2355,4814.2,4813.6,0.2364]
[1755996301797,3.5671,4814.2,4813.6,0.2364]
[1755996301990,0.3593,4813.5,4813.0,0.41566]
[1755996302194,0.3593,4813.5,4813.1,0.2258]
[1755996302596,0.3593,4813.6,4813.4,0.4622]
[1755996302795,3.2078,4813.7,4812.8,3.2078]
[1755996302796,0.41562,4813.5,4813.1,0.2258]
[1755996302995,0.41562,4813.5,4813.0,0.41567]
[1755996303200,0.41562,4813.5,4812.7,0.3247]
[1755996303201,3.2078,4813.7,4813.2,0.2258]
[1755996303500,3.2078,4813.7,4813.6,1.20251]
[1755996303696,0.3559,4814.5,4814.2,0.41556]
[1755996303899,3.2078,4814.6,4814.4,1.22045]
[1755996304203,3.5637,4814.6,4814.5,0.8049]
[1755996304496,19.371,4815.5,4814.5,0.8049]
[1755996304702,0.3559,4815.4,4814.7,0.2237]
[1755996305002,0.3559,4815.4,4814.8,0.2291]
[1755996305399,0.3559,4815.3,4814.8,0.2291]
[1755996305807,0.3559,4814.9,4813.5,0.2291]
[1755996306102,0.3559,4813.5,4813.2,0.2291]
[1755996306301,0.3559,4813.3,4813.2,0.2291]
[1755996307302,3.2078,4813.8,4813.2,0.2291]
[1755996307303,3.2078,4813.8,4813.2,0.8049]
[1755996307499,3.2078,4813.8,4813.5,0.41561]
[1755996307706,0.3559,4813.7,4813.6,0.4528]
[1755996308613,0.3559,4813.7,4813.6,0.2291]
[1755996308914,0.3559,4813.5,4813.2,0.2291]
[1755996309306,1.03886,4814.4,4813.3,0.2291]
[1755996309307,3.5637,4813.4,4813.3,0.2291]
[1755996310011,3.5637,4813.4,4813.3,1.22053]
[1755996310210,3.62336,4814.1,4813.6,0.4156]
[1755996310413,0.3559,4813.9,4813.8,0.2291]
[1755996310809,4.0,4813.9,4813.1,0.2291]
[1755996311005,0.41567,4812.9,4812.5,0.4157]
[1755996311210,0.3559,4812.8,4812.7,0.2291]
[1755996312107,0.41572,4812.4,4811.7,0.2291]
[1755996312314,0.3559,4812.3,4812.1,0.41573]
[1755996312513,0.3559,4812.3,4812.2,0.8049]
[1755996312813,1.39523,4812.2,4811.0,3.4315]
[1755996313008,0.3559,4811.2,4811.0,0.2291]
[1755996313311,0.3559,4810.9,4810.6,0.2291]
[1755996313615,0.3559,4810.9,4810.6,0.64496]
[1755996313811,0.3559,4810.8,4810.7,0.2291]
[1755996314004,19.403,4811.7,4810.7,0.86866]
[1755996314207,19.403,4811.7,4810.7,0.3521]
[1755996314416,19.7589,4811.7,4811.5,0.41578]
[1755996314718,19.403,4811.7,4810.8,0.2291]
[1755996314916,20.44244,4811.7,4810.4,3.2078]
[1755996315117,0.41586,4810.8,4810.4,0.2291]
[1755996315422,3.2078,4810.5,4810.4,0.41588]
[1755996315623,3.5637,4810.5,4810.4,1.22078]
[1755996315917,3.5637,4810.5,4809.4,3.5599]
[1755996315918,3.62368,4810.5,4809.4,3.5599]
[1755996316118,3.2078,4810.5,4809.7,0.2237]
[1755996316417,3.2078,4810.5,4809.1,0.2291]
[1755996316418,0.3559,4810.1,4809.1,0.2291]
[1755996316621,0.3559,4810.1,4810.0,9.6398]
[1755996316817,0.41606,4808.4,4808.2,0.2291]
[1755996317012,0.41606,4808.4,4807.7,3.2078]
[1755996317212,19.482,4808.7,4807.7,3.2078]
[1755996317412,19.482,4808.7,4807.8,0.2291]
[1755996317619,19.482,4808.7,4807.9,0.2291]
[1755996318016,19.89804,4808.7,4807.9,0.2291]
[1755996318421,19.89804,4808.7,4807.9,0.6452]
[1755996318422,19.482,4808.7,4807.9,0.6452]
[1755996318626,0.41604,4808.6,4807.9,0.6452]
[1755996318829,0.41606,4808.5,4807.9,0.2291]
[1755996319024,19.89803,4808.7,4807.9,0.2291]
[1755996319221,19.482,4808.7,4807.9,0.2291]
[1755996319419,19.482,4808.7,4807.3,0.2237]
[1755996319420,3.2078,4808.0,4807.3,0.2291]
[1755996319622,3.2078,4808.1,4807.3,0.2291]
[1755996319822,0.41607,4808.3,4807.5,0.3521]
[1755996320126,3.2078,4808.6,4808.0,0.2291]
[1755996320632,3.2078,4808.6,4807.9,0.2237]
[1755996320633,3.2078,4808.6,4808.5,0.8049]
[1755996320831,19.482,4808.7,4808.6,1.22094]
[1755996321230,22.7468,4809.7,4809.3,0.41598]
[1755996321534,0.41598,4809.3,4808.6,0.2291]
[1755996321728,0.41602,4808.8,4808.7,0.2237]
[1755996321927,0.41602,4808.8,4808.0,3.62388]
[1755996322129,3.2078,4809.0,4808.4,0.41605]
[1755996322328,3.2078,4809.0,4808.4,0.64515]
[1755996322632,3.2078,4809.0,4808.5,0.41604]
[1755996322832,3.2078,4809.5,4808.7,0.41603]
[1755996323126,3.2078,4809.0,4808.1,0.2291]
[1755996323338,0.41603,4808.8,4808.1,0.64518]
[1755996323630,19.97903,4808.8,4808.1,0.64518]
[1755996323829,19.563,4808.8,4808.1,0.2291]
[1755996324030,19.563,4808.8,4808.7,0.4528]
[1755996324529,19.563,4808.8,4808.7,0.8049]
[1755996325226,19.556,4809.5,4809.4,0.2291]
[1755996325427,20.8048,4808.1,4805.1,0.2291]
[1755996325626,0.41639,4804.6,4804.1,0.32485055]
[1755996325829,0.2237,4804.2,4804.1,0.09575055]
[1755996326631,20.1687,4804.2,4804.1,0.09575055]
[1755996326834,19.945,4804.2,4804.1,0.67695055]
[1755996327130,0.4164,4804.4,4804.2,0.2291]
[1755996327332,23.57519,4804.5,4804.2,0.5812]
[1755996327532,23.79889,4804.5,4804.3,0.2291]
[1755996327734,23.1588,4804.5,4804.4,0.4528]
[1755996327931,23.1588,4804.5,4804.4,0.8049]
[1755996328229,0.2237,4805.0,4804.4,0.8049]
[1755996328430,19.948,4805.1,4804.4,0.2291]
[1755996328631,19.948,4805.1,4804.9,0.5758]
[1755996328825,3.2078,4805.2,4805.1,0.5758]
[1755996329030,0.2237,4805.5,4804.2,0.8049]
[1755996329231,0.2237,4805.5,4804.1,0.11655055]
[1755996329437,0.2237,4805.5,4804.8,0.41636]
[1755996329734,0.2237,4805.5,4804.9,0.2291]
[1755996329930,19.946,4805.6,4805.0,0.41635]
[1755996330135,0.2241,4805.4,4805.1,0.5758]
[1755996330442,0.2241,4805.1,4804.2,0.2291]
[1755996330737,0.64051,4804.3,4804.1,0.09575055]
[1755996330932,20.1821,4804.2,4804.1,0.32485055]
[1755996331633,19.958,4804.2,4804.1,0.90065055]
[1755996331832,29.951,4805.7,4805.0,0.8049]
[1755996331833,3.2078,4805.1,4805.0,0.8049]
[1755996332436,3.2078,4805.6,4805.5,0.8049]
[1755996332837,19.959,4805.9,4805.5,0.5758]
[1755996333039,0.2241,4805.8,4805.6,0.2291]
[1755996333230,19.954,4805.8,4805.7,0.41629]
[1755996333432,0.2241,4805.7,4805.0,0.2291]
[1755996333742,23.1618,4805.8,4803.8,1.04112]
[1755996333743,0.2242,4804.7,4804.2,0.41641]
[1755996334039,3.432,4804.5,4804.2,0.3289]
[1755996334238,3.432,4804.5,4804.4,0.2389]
[1755996334436,23.1838,4805.1,4804.4,0.2389]
[1755996334636,23.1838,4805.1,4804.3,0.5459]
[1755996334637,23.1838,4805.1,4804.5,0.41639]
[1755996334839,23.1838,4805.1,4804.9,0.41635]
[1755996335038,3.2078,4805.1,4805.0,0.7848]
[1755996336338,19.9798,4805.2,4805.1,0.2389]
[1755996336538,20.204,4805.2,4805.1,0.2389]
[1755996336731,20.195,4805.2,4805.1,0.2389]
[1755996337135,3.2078,4805.4,4805.1,0.2389]
[1755996337332,19.964,4805.3,4805.2,0.4559]
[1755996337642,3.2078,4805.4,4805.2,0.7848]
[1755996337842,23.1658,4805.4,4805.3,0.2389]
[1755996338040,1.66218566,4808.3,4805.3,0.2389]
[1755996338041,0.2242,4806.5,4805.3,3.2078]
[1755996338240,3.2078,4806.6,4806.4,0.41623]
[1755996338437,3.2078,4806.6,4806.5,0.7848]
[1755996338637,0.2242,4806.6,4806.5,0.2389]
[1755996338838,0.225,4806.6,4806.5,0.2389]
[1755996339043,19.972,4806.6,4806.5,0.2389]
[1755996339246,19.975,4806.6,4806.5,0.5459]
[1755996339936,19.975,4806.6,4806.5,0.7848]
[1755996340140,3.2078,4806.7,4806.6,0.87211]
[1755996340341,3.2078,4806.7,4806.6,1.20101]
[1755996340545,23.1678,4806.7,4806.6,1.20101]
[1755996340746,3.2078,4806.7,4806.6,1.20101]
[1755996341248,19.954,4807.1,4807.0,0.65507]
[1755996341449,20.179,4807.1,4807.0,0.65507]
[1755996342349,3.2078,4807.7,4807.6,0.4559]
[1755996342549,23.1658,4807.7,4807.6,0.7848]
[1755996342949,29.978,4808.0,4807.6,0.5459]
[1755996343145,19.954,4807.9,4807.6,0.41612]
[1755996343347,0.225,4807.7,4807.6,0.41612]
[1755996343642,19.954,4807.9,4807.8,0.4161]
[1755996343947,29.978,4808.0,4807.9,0.7848]
[1755996344154,49.931,4808.0,4807.9,0.7848]
[1755996344450,3.2078,4808.2,4808.0,0.41609]
[1755996344652,20.40685851,4808.1,4808.0,1.20089]
[1755996344851,21.04793851,4808.1,4807.5,0.63313]
[1755996345044,0.225,4807.7,4807.3,0.41614]
[1755996345250,0.225,4807.9,4807.4,0.41613]
[1755996345443,0.225,4807.7,4807.6,0.2389]
[1755996345646,0.0008,4808.9,4807.5,3.2286]
[1755996345845,0.46715643,4808.8,4808.7,0.87192]
[1755996346154,3.2078,4809.3,4809.2,0.2389]
[1755996346350,3.67488948,4809.3,4809.2,0.7848]
[1755996346650,3.2078,4809.8,4809.7,0.7848]
[1755996346951,3.67515738,4809.8,4809.7,0.4559]
[1755996347151,3.90015738,4809.8,4809.7,0.4559]
[1755996347447,3.67515738,4809.8,4809.7,0.7848]
[1755996347650,3.67595738,4809.8,4809.7,0.2389]
[1755996347851,0.225,4809.6,4809.3,0.2389]
[1755996348057,0.41594,4809.7,4809.4,0.2389]
[1755996348349,3.2078,4809.7,4809.5,0.41596]
[1755996348550,3.2078,4809.7,4809.5,0.65486]
[1755996348753,0.225,4809.6,4809.5,0.65486]
[1755996348951,3.2078,4809.7,4809.5,0.41596]
[1755996349148,3.2078,4809.7,4809.6,0.7848]
[1755996349453,20.002,4809.8,4809.7,1.20074]
[1755996349953,0.225,4810.1,4810.0,0.41592]
[1755996350154,0.225,4810.1,4810.0,0.65482]
[1755996350155,20.225,4810.1,4810.0,0.65482]
[1755996350347,20.69234837,4810.1,4810.0,0.65482]
[1755996350547,20.69234837,4810.1,4810.0,0.2389]
[1755996350752,0.69234837,4810.1,4810.0,0.2389]
[1755996350952,20.67734837,4810.1,4810.0,0.2389]
[1755996352256,0.69234837,4810.1,4810.0,0.2389]
[1755996352557,20.44134837,4810.1,4810.0,0.7848]
[1755996352950,0.46734837,4810.1,4810.0,0.7848]
[1755996353150,20.42934837,4810.1,4810.0,0.7848]
[1755996353657,1.49180705,4811.0,4810.9,0.41584]
[1755996353860,20.1878,4811.0,4810.9,0.87174]
[1755996354157,20.412,4811.0,4810.9,0.65474]
[1755996354451,19.973,4811.0,4810.7,0.41585]
[1755996354656,0.452,4810.8,4810.7,0.65475]
[1755996354855,20.1948,4810.8,4810.7,1.20065]
[1755996355149,1.4859269,4811.0,4810.9,0.41584]
[1755996355356,3.4356,4811.4,4811.0,0.32958283]
[1755996355550,20.5225,4811.2,4811.1,0.2389]
[1755996355947,20.5225,4811.2,4811.1,0.65472]
[1755996356147,0.5615,4811.2,4811.1,0.65472]
[1755996356346,20.59441,4811.2,4810.8,0.65474]
[1755996356547,0.7911,4811.1,4811.0,0.41582]
[1755996357469,0.5615,4811.1,4811.0,0.65472]
[1755996357760,20.5075,4811.1,4811.0,0.65472]
[1755996358558,0.5615,4811.1,4811.0,0.65472]
[1755996358763,0.5615,4811.1,4811.0,0.87172]
[1755996359661,0.5615,4811.1,4811.0,0.65472]
[1755996360367,0.5615,4811.1,4811.0,0.87172]
[1755996360563,0.5615,4811.1,4811.0,1.20062]
[1755996360764,0.5615,4811.1,4811.0,0.87172]
[1755996361062,20.4785,4811.1,4811.0,1.20062]
[1755996361259,20.4785,4811.1,4811.0,0.98362]
[1755996361460,20.4785,4811.1,4810.8,0.41584]
[1755996361461,20.1446,4811.1,4810.8,0.41584]
[1755996361666,0.7911,4811.0,4810.9,0.41583]
[1755996362366,2.28278631,4811.0,4810.9,0.41583]
[1755996362567,2.28278631,4811.0,4810.9,0.65473]
[1755996362863,0.5615,4811.0,4810.9,0.41583]
[1755996363069,0.5615,4811.0,4810.9,0.65473]
[1755996364157,0.5615,4811.0,4810.9,0.88893]
[1755996364363,20.4335,4811.0,4810.9,0.88893]
[1755996364565,20.4335,4811.0,4810.9,1.23033]
[1755996364969,20.6503,4811.0,4810.9,0.65473]
[1755996365160,0.5615,4811.0,4810.9,0.65473]
[1755996365358,20.4215,4811.0,4810.9,1.23033]
[1755996366275,19.86,4811.0,4810.9,1.23033]
[1755996366569,0.5653,4811.0,4810.9,1.23033]
[1755996366869,20.4203,4811.0,4810.9,1.23033]
[1755996367559,20.4203,4811.0,4810.9,0.88893]
[1755996367965,20.4203,4811.0,4810.9,0.65473]
[1755996368265,20.9685,4811.0,4810.9,0.65473]
[1755996368470,21.1853,4811.0,4810.9,0.65473]
[1755996368768,21.1853,4811.0,4810.9,0.41583]
[1755996369567,20.62,4811.0,4810.4,0.2347]
[1755996369767,20.62,4811.0,4810.4,0.41588]
[1755996369768,0.5482,4810.5,4810.4,0.41588]
[1755996369975,21.1443,4810.5,4810.4,0.41588]
[1755996370167,20.9275,4810.5,4810.4,1.42648]
[1755996370468,1.3303,4810.5,4810.4,0.65058]
[1755996370673,1.3303,4810.5,4810.4,0.41588]
[1755996371066,1.3303,4810.5,4810.4,0.65058]
[1755996371262,0.7821,4810.4,4810.2,0.41589]
[1755996371466,0.5482,4809.5,4809.4,0.88487]
[1755996371670,1.3303,4809.5,4809.4,0.65067]
[1755996371867,1.3303,4809.5,4809.4,0.41597]
[1755996372574,1.3303,4809.5,4809.4,0.65067]
[1755996372776,1.3303,4809.5,4809.4,0.41597]
[1755996372972,1.49487459,4810.4,4809.4,0.41597]
[1755996372973,0.8966,4810.7,4810.6,0.1496]
[1755996373271,0.5482,4810.0,4809.9,1.0106]
[1755996373467,1.3303,4810.0,4809.9,0.80782]
[1755996373675,1.1135,4810.0,4809.9,1.42652]
[1755996373866,0.2352,4810.0,4809.9,1.76792]
[1755996374066,3.2078,4810.3,4810.2,0.9576]
[1755996374067,3.756,4810.3,4810.2,0.9576]
[1755996374268,4.3213,4810.3,4810.2,1.7679]
[1755996374476,4.3213,4810.3,4810.2,1.4265]
[1755996374679,4.3213,4810.3,4810.2,1.1923]
[1755996374881,4.3213,4810.3,4810.2,0.9574]
[1755996375177,4.5381,4810.3,4810.2,0.9574]
[1755996375377,4.5381,4810.3,4810.2,0.4159]
[1755996375675,0.9819,4809.6,4809.5,0.65065]
[1755996375872,1.3303,4809.6,4809.5,0.65065]
[1755996376274,1.1135,4809.6,4809.5,0.80785]
[1755996377478,1.1135,4809.6,4809.5,1.04205]
[1755996378181,1.3303,4809.6,4809.5,0.80785]
[1755996378670,1.1135,4809.6,4809.5,1.42655]
[1755996378875,1.3303,4809.6,4809.5,0.80785]
[1755996379274,1.1135,4809.6,4809.5,1.76795]
[1755996381478,0.5482,4809.4,4809.3,0.41597]
[1755996381678,1.3303,4809.4,4809.3,0.41597]
[1755996381982,1.3303,4809.0,4808.9,0.41601]
[1755996382175,21.1213,4809.0,4808.9,0.41601]
[1755996382770,21.1213,4809.0,4808.9,0.65071]
[1755996382977,21.1213,4809.0,4808.9,0.80791]
[1755996383678,3.2078,4809.7,4808.9,0.80791]
[1755996383679,1.1135,4809.5,4809.4,0.57317]
[1755996383882,20.9065,4809.5,4809.4,1.76797]
[1755996384277,20.3412,4809.5,4809.4,2.02816694]
[1755996384881,0.5482,4809.5,4809.4,2.02816694]
[1755996385081,0.3943,4809.5,4809.4,2.02816694]
[1755996385278,0.8966,4809.5,4809.4,2.02816694]
[1755996385483,1.1135,4809.5,4809.4,2.02816694]
[1755996385980,3.2078,4809.7,4809.6,0.41595]
[1755996386179,23.8774,4810.2,4810.1,1.19231]
[1755996386381,0.2168,4810.6,4810.5,1.76787]
[1755996386382,0.8005,4810.6,4810.5,1.76787]
[1755996386780,0.4158,4811.4,4810.5,1.76787]
[1755996386781,3.2078,4811.4,4811.0,0.0207]
[1755996387082,3.2078,4811.4,4811.3,1.2261]
[1755996387284,3.67006544,4811.4,4811.3,1.2261]
[1755996388580,0.46226544,4811.4,4811.3,1.2261]
[1755996389478,0.81066544,4811.4,4811.3,1.2261]
[1755996389878,0.46226544,4811.4,4811.3,1.2261]
[1755996390583,0.81066544,4811.4,4811.3,1.2261]
[1755996390979,0.81066544,4811.4,4811.3,1.7678]
[1755996391782,0.46226544,4811.4,4811.3,1.7678]
[1755996392483,0.5482,4811.8,4811.7,0.57297]
[1755996392684,1.01035026,4811.8,4811.7,0.80767]
[1755996392988,1.79245026,4811.8,4811.7,0.3919]
[1755996393188,1.79245026,4811.8,4811.4,0.41579]
[1755996393189,0.5482,4811.5,4811.4,0.41579]
[1755996393388,1.79245026,4811.5,4811.4,0.41579]
[1755996393581,1.1075,4811.3,4811.2,1.17441]
[1755996393782,4.77745026,4811.3,4811.2,1.40431]
[1755996395783,5.00345026,4811.3,4811.2,0.41581]
[1755996395989,1.3284,4811.1,4811.0,0.41583]
[1755996396189,0.5342,4810.8,4810.7,0.63536]
[1755996396492,1.3284,4810.8,4810.7,0.78666]
[1755996396686,1.1024,4810.8,4810.7,1.16496]
[1755996397493,1.1024,4810.8,4810.7,1.38916]
[1755996397687,0.3344,4810.7,4810.6,0.1513]
[1755996397890,1.3284,4810.7,4810.6,0.41587]
[1755996398586,1.3284,4810.7,4810.6,0.2195]
[1755996398793,1.3284,4810.2,4810.1,3.99451]
[1755996398993,1.3284,4810.2,4810.1,4.21871]
[1755996399194,1.1024,4810.2,4810.1,4.95541]
[1755996400499,1.1024,4810.2,4810.1,1.74761]
[1755996401685,1.3284,4810.2,4810.1,0.78671]
[1755996401889,1.3284,4810.2,4810.1,0.41591]
[1755996402085,1.1024,4810.0,4809.9,1.15932]
[1755996402295,1.1024,4810.0,4809.9,1.74762]
[1755996403196,4.0764,4810.8,4810.7,1.74756]
[1755996403397,4.3102,4810.8,4810.7,1.3317]
[1755996403593,4.3102,4810.8,4810.7,0.9733]
[1755996403792,4.3102,4810.8,4810.7,1.3317]
[1755996405392,4.3102,4810.8,4810.7,0.9733]
[1755996405898,4.5362,4810.8,4810.7,0.9733]
[1755996406899,4.3102,4810.8,4810.7,0.9733]
[1755996407099,4.3102,4810.8,4810.7,1.3317]
[1755996408098,1.1024,4810.8,4810.7,1.3317]
[1755996409102,1.1024,4811.4,4811.3,0.5239]
[1755996409303,4.3102,4811.4,4811.3,1.7475]
[1755996409701,4.3102,4811.4,4811.3,2.03525912]
[1755996410606,3.742,4811.4,4811.3,2.03525912]
[1755996411506,4.3102,4811.4,4811.3,2.03525912]
[1755996412706,3.742,4811.4,4811.3,2.03525912]
[1755996413807,4.5362,4811.4,4811.3,0.92342064]
[1755996414008,4.5362,4811.4,4811.3,0.70392065]
[1755996414307,3.2078,4811.4,4811.3,2.03562065]
[1755996414501,4.0764,4811.4,4811.3,2.03562065]
[1755996414705,4.5362,4811.4,4811.3,1.44732065]
[1755996414910,4.5362,4811.4,4811.3,1.0747807]
[1755996415610,4.3102,4811.4,4811.3,2.0356807]
[1755996416619,3.2078,4811.4,4811.3,2.0356807]
[1755996417303,0.3899,4811.9,4811.8,1.74746]
[1755996417503,1.1024,4811.9,4811.8,2.0356407]
[1755996417709,1.3284,4811.9,4811.8,1.4473407]
[1755996418110,1.3284,4811.9,4811.8,0.7039407]
[1755996418513,1.1024,4811.9,4811.8,2.0356407]
[1755996418907,0.5342,4811.9,4811.8,2.0356407]
[1755996419107,3.2078,4812.1,4812.0,1.74744]
[1755996419307,3.2078,4812.1,4812.0,2.0356207]
[1755996419709,4.3102,4812.1,4812.0,2.0356207]
[1755996420314,0.8686,4813.0,4812.9,1.38897]
[1755996420611,1.56503719,4813.0,4812.9,1.38897]
[1755996420811,1.56503719,4813.0,4812.6,0.3584]
[1755996420812,1.1024,4812.6,4812.5,0.567]
[1755996421012,1.1024,4812.6,4812.5,0.28820174]
[1755996421013,4.99885983,4812.6,4812.5,0.28820174]
[1755996421209,4.99885983,4812.6,4811.7,0.2195]
[1755996421210,1.2615,4811.8,4811.7,0.63527]
[1755996421415,0.7314,4811.6,4811.5,0.41578]
[1755996421614,1.0355,4811.6,4811.5,0.41578]
[1755996421811,20.6885,4811.6,4811.5,0.41578]
[1755996422113,1.2615,4811.6,4811.5,1.15918]
[1755996422307,1.0355,4811.6,4811.5,1.74748]
[1755996422508,20.7517,4812.0,4811.9,0.41575]
[1755996422714,21.14828567,4812.0,4811.9,1.74745]
[1755996423109,20.41688567,4812.0,4811.9,1.74745]
[1755996423417,1.0355,4812.8,4812.7,1.74738]
[1755996423707,1.49975847,4812.8,4812.7,1.74738]
[1755996424116,1.72585847,4812.8,4812.7,0.2195]
[1755996424412,1.2474,4811.8,4811.7,0.78387]
[1755996424617,1.0213,4811.8,4811.7,1.73087]
[1755996425110,1.0213,4811.8,4811.7,1.15997]
[1755996425513,1.0213,4811.8,4811.7,1.73087]
[1755996425910,0.2261,4813.1,4812.1,1.3151]
[1755996426109,1.48552328,4813.0,4812.9,1.50416]
[1755996426312,1.48552328,4813.0,4812.9,1.73076]
[1755996427012,1.0213,4813.0,4812.9,1.73076]
[1755996427214,0.2926,4813.0,4812.9,1.73076]
[1755996427415,0.7952,4813.0,4812.9,1.73076]
[1755996428809,0.2357,4813.0,4812.9,1.73076]
[1755996429019,3.7265,4813.4,4813.3,1.00083]
[1755996429318,4.1901863,4813.4,4813.3,1.00083]
[1755996429617,4.2291,4813.4,4813.3,1.00083]
[1755996429818,4.2291,4813.4,4813.3,0.5852]
[1755996430207,4.2291,4813.4,4813.3,0.7442]
[1755996430415,3.3519,4813.4,4813.3,1.3151]
[1755996430615,3.2078,4813.4,4813.3,1.3151]
[1755996430921,3.5004,4813.4,4813.3,1.3151]
[1755996431215,0.2926,4813.4,4813.3,1.3151]
[1755996431517,4.2291,4813.9,4813.8,1.3151]
[1755996432416,4.4552,4813.9,4813.8,0.7442]
[1755996432720,4.4552,4813.9,4813.8,0.5852]
[1755996432913,4.4552,4813.9,4813.8,0.2189]
[1755996433115,4.87079,4813.9,4813.7,0.41559]
[1755996433316,4.87079,4813.9,4813.4,0.2189]
[1755996433317,1.2474,4813.5,4813.4,0.2189]
[1755996435023,0.7287,4813.8,4813.2,0.2189]
[1755996435215,4.36823,4813.3,4813.1,0.41565]
[1755996435525,1.66304,4813.2,4813.1,0.41565]
[1755996435718,1.2474,4813.2,4813.1,0.41565]
[1755996435924,0.5187,4813.2,4812.9,0.64226]
[1755996436123,1.2474,4813.0,4812.9,0.2189]
[1755996436520,0.7952,4813.0,4812.9,1.3151]
[1755996436718,0.5595,4813.0,4812.9,1.3151]
[1755996436920,0.1441,4813.0,4812.9,1.3151]
[1755996437123,1.43693,4813.4,4813.3,0.5253]
[1755996437325,1.0213,4813.4,4813.3,0.7442]
[1755996437622,1.0213,4813.4,4813.3,1.3151]
[1755996438212,0.1441,4813.4,4813.3,1.3151]
[1755996438616,0.5187,4813.4,4813.3,1.3151]
[1755996438824,1.0213,4813.4,4813.3,1.3151]
[1755996439926,0.2926,4813.4,4813.3,1.3151]
[1755996440120,3.7104,4813.8,4813.7,0.4156]
[1755996440320,4.2291,4813.8,4813.7,1.7307]
[1755996441026,1.0213,4813.8,4813.7,1.7307]
[1755996442130,1.0213,4814.1,4814.0,1.73066]
[1755996443025,1.48451438,4814.1,4814.0,1.3151]
[1755996443224,1.71061438,4814.1,4814.0,1.3151]
[1755996443425,1.71061438,4814.1,4814.0,0.7442]
[1755996444424,1.71061438,4814.1,4814.0,1.3151]
[1755996445233,1.48451438,4814.1,4814.0,1.3151]
[1755996445533,1.71061438,4814.1,4814.0,0.5852]
[1755996446126,0.5187,4813.7,4813.6,1.7307]
[1755996446329,1.0213,4813.7,4813.6,1.7307]
[1755996447333,1.2474,4813.7,4813.6,1.7307]
[1755996447536,0.3702,4813.3,4813.2,1.01063]
[1755996447837,1.0213,4813.3,4813.2,1.73073]
[1755996448532,3.71,4813.7,4813.4,0.41561]